bitfinex-derivatives/quotes_BTCF0:USTF0_20210706
["timestamp","ask_amount","ask_price","bid_price","bid_amount"]
[1625548768287,0.1,34759.0,34758.0,5.87849484]
[1625548768385,0.001,34764.0,34758.0,5.87849484]
[1625548768484,0.06,34764.0,34758.0,5.87849484]
[1625548768735,0.06,34764.0,34763.0,2.78713429]
[1625548768836,0.06,34764.0,34763.0,3.06099429]
[1625548768935,0.06,34764.0,34763.0,3.00199429]
[1625548769135,0.06,34764.0,34763.0,1.85435076]
[1625548769234,0.07628564,34764.0,34763.0,1.85435076]
[1625548769685,0.07628564,34764.0,34763.0,2.33550164]
[1625548770594,0.07628564,34764.0,34763.0,1.35180718]
[1625548770693,0.07628564,34764.0,34763.0,1.13694718]
[1625548770898,0.07628564,34764.0,34763.0,2.12105032]
[1625548771697,0.07628564,34764.0,34763.0,1.13694718]
[1625548773551,0.01728564,34764.0,34763.0,1.13694718]
[1625548773650,0.01728564,34764.0,34763.0,1.37511718]
[1625548774152,0.01728564,34764.0,34763.0,2.35834463]
[1625548775103,0.001,34764.0,34763.0,2.35834463]
[1625548775356,0.001,34764.0,34763.0,3.56340259]
[1625548775453,0.001,34764.0,34763.0,3.50440259]
[1625548775605,0.01728517,34764.0,34763.0,3.50440259]
[1625548775958,0.01728517,34764.0,34763.0,2.35834463]
[1625548776054,0.01728517,34764.0,34763.0,2.41734463]
[1625548776307,0.01628517,34764.0,34763.0,2.41734463]
[1625548776407,0.03256997,34764.0,34763.0,2.41734463]
[1625548776613,0.03256997,34764.0,34763.0,3.56396453]
[1625548777007,0.03256997,34764.0,34763.0,3.50496453]
[1625548777308,0.0162848,34764.0,34763.0,3.56396453]
[1625548777511,0.0162848,34764.0,34763.0,3.50496453]
[1625548777614,0.0162848,34764.0,34763.0,2.35834463]
[1625548777709,0.0162848,34764.0,34763.0,2.12017463]
[1625548777814,0.001,34769.0,34763.0,2.12017463]
[1625548777815,0.01628506,34768.0,34763.0,2.12017463]
[1625548777911,0.07528506,34768.0,34763.0,2.12017463]
[1625548778109,0.01628509,34764.0,34763.0,2.12017463]
[1625548778210,0.01628509,34764.0,34763.0,1.13694718]
[1625548778410,0.01628522,34767.0,34763.0,1.13694718]
[1625548778609,0.07528522,34767.0,34763.0,1.13694718]
[1625548778711,0.059,34767.0,34763.0,1.13694718]
[1625548778962,0.01628501,34766.0,34765.0,0.16395692]
[1625548779064,0.07528501,34766.0,34765.0,0.16395692]
[1625548779465,0.07528501,34766.0,34764.0,0.65582768]
[1625548779567,0.059,34766.0,34764.0,0.65582768]
[1625548779666,0.67908967,34774.0,34765.0,0.057]
[1625548779767,0.67908967,34774.0,34773.0,0.72172632]
[1625548779866,0.67908967,34774.0,34773.0,1.05847632]
[1625548779968,0.002,34774.0,34773.0,1.11747632]
[1625548780068,0.01823111,34774.0,34773.0,1.11747632]
[1625548780917,0.01823111,34774.0,34773.0,1.05847632]
[1625548781022,0.07723111,34774.0,34773.0,0.77872632]
[1625548781367,0.07723111,34774.0,34773.0,0.72172632]
[1625548781569,0.13623111,34774.0,34773.0,0.72172632]
[1625548782320,0.07723111,34774.0,34773.0,0.72172632]
[1625548782570,0.13623111,34774.0,34773.0,0.72172632]
[1625548782721,0.13623111,34774.0,34773.0,0.77872632]
[1625548782820,0.13623111,34774.0,34773.0,0.72172632]
[1625548783373,0.22213111,34774.0,34773.0,0.72172632]
[1625548783576,0.25626674,34774.0,34773.0,0.72172632]
[1625548783774,0.17036674,34774.0,34773.0,0.72172632]
[1625548784023,0.13623111,34774.0,34773.0,0.72172632]
[1625548784324,0.17036664,34774.0,34773.0,0.72172632]
[1625548784825,0.25726664,34774.0,34773.0,0.72172632]
[1625548786131,0.93463178,34774.0,34773.0,0.72172632]
[1625548786680,0.87563178,34774.0,34773.0,0.72172632]
[1625548787083,0.87563178,34774.0,34773.0,0.77872632]
[1625548787183,0.81663178,34774.0,34773.0,0.77872632]
[1625548787283,0.78249625,34774.0,34773.0,0.77872632]
[1625548787385,0.84149625,34774.0,34773.0,0.77872632]
[1625548787737,0.16413111,34774.0,34773.0,0.77872632]
[1625548787936,0.10513111,34774.0,34773.0,0.77872632]
[1625548788186,0.16413111,34774.0,34773.0,0.77872632]
[1625548788287,0.16213111,34774.0,34773.0,0.77872632]
[1625548788587,0.07523111,34774.0,34773.0,0.77872632]
[1625548789138,0.01623111,34774.0,34773.0,0.77872632]
[1625548789341,0.07523111,34774.0,34773.0,0.77872632]
[1625548789540,0.75317766,34774.0,34773.0,0.77872632]
[1625548789691,0.81217766,34774.0,34773.0,0.77872632]
[1625548790190,0.84631398,34774.0,34773.0,0.77872632]
[1625548791247,0.84631398,34774.0,34773.0,0.72172632]
[1625548791651,1.86359173,34774.0,34773.0,0.77872632]
[1625548791752,1.86359173,34774.0,34773.0,0.72172632]
[1625548792902,3.0508283,34774.0,34773.0,0.72172632]
[1625548793203,2.9918283,34774.0,34773.0,0.72172632]
[1625548793304,1.86359173,34774.0,34773.0,0.72172632]
[1625548793907,1.86359173,34774.0,34773.0,0.77872632]
[1625548794355,1.86359173,34774.0,34773.0,0.72172632]
[1625548794557,0.84631398,34774.0,34773.0,0.72172632]
[1625548795107,1.86421575,34774.0,34773.0,0.72172632]
[1625548795457,1.86421575,34774.0,34773.0,0.77872632]
[1625548795758,1.86421575,34774.0,34773.0,0.72172632]
[1625548795858,1.86421575,34774.0,34773.0,0.77872632]
[1625548795959,1.86421575,34774.0,34773.0,0.72172632]
[1625548797211,3.05220345,34774.0,34773.0,0.72172632]
[1625548797612,3.13760345,34774.0,34773.0,0.72172632]
[1625548797711,3.13760345,34774.0,34773.0,0.24057544]
[1625548797813,3.61875433,34774.0,34772.0,0.001]
[1625548797911,3.68703386,34774.0,34772.0,0.001]
[1625548798112,1.69754908,34773.0,34772.0,0.001]
[1625548798213,4.42134904,34773.0,34772.0,0.001]
[1625548798313,4.48034904,34773.0,34772.0,0.001]
[1625548798515,0.058,34771.0,34768.0,0.24057544]
[1625548798614,0.0864,34770.0,34768.0,0.24057544]
[1625548798715,0.2044,34770.0,34768.0,0.18157544]
[1625548798916,0.2044,34770.0,34768.0,0.13817544]
[1625548799017,0.05036695,34769.0,34768.0,0.13817544]
[1625548799116,0.10936695,34769.0,34767.0,0.002]
[1625548799217,4.92356989,34769.0,34767.0,0.002]
[1625548799416,4.92356989,34769.0,34761.0,0.35899148]
[1625548799516,0.05036863,34768.0,34761.0,0.35899148]
[1625548799617,0.16836863,34768.0,34761.0,0.35899148]
[1625548799867,0.16836863,34768.0,34759.0,0.99078432]
[1625548799868,1.93900409,34762.0,34759.0,0.66076481]
[1625548799966,0.0856,34761.0,34759.0,0.66076481]
[1625548800066,0.1446,34761.0,34759.0,0.47276481]
[1625548800167,0.2036,34761.0,34759.0,0.47276481]
[1625548800270,0.1,34760.0,34759.0,0.47276481]
[1625548800368,0.159,34760.0,34759.0,0.47276481]
[1625548800474,0.218,34760.0,34756.0,0.97233842]
[1625548800570,0.26837009,34760.0,34757.0,0.99131313]
[1625548800770,0.05037567,34759.0,34757.0,0.92881313]
[1625548800868,0.10937567,34759.0,34757.0,0.87531313]
[1625548800968,3.7003,34758.0,34757.0,0.78121313]
[1625548801069,3.8183,34758.0,34757.0,0.78121313]
[1625548801272,4.8378559,34758.0,34756.0,0.004]
[1625548801372,4.8882336,34758.0,34756.0,0.004]
[1625548801576,0.05037758,34757.0,34756.0,0.004]
[1625548801675,1.40979013,34757.0,34756.0,0.004]
[1625548801780,1.46879013,34757.0,34756.0,0.004]
[1625548801872,2.00894101,34757.0,34756.0,0.004]
[1625548801976,2.10894101,34757.0,34756.0,0.004]
[1625548802721,2.10894101,34757.0,34754.0,0.8719]
[1625548802822,2.60894101,34757.0,34751.0,0.005]
[1625548803025,2.60894101,34757.0,34744.0,1.32477899]
[1625548803122,2.60894101,34757.0,34746.0,0.13337544]
[1625548803223,0.05038081,34756.0,34746.0,0.13337544]
[1625548803323,0.10938081,34756.0,34751.0,0.005]
[1625548803426,1.35897039,34754.0,34751.0,0.005]
[1625548803524,2.22463039,34754.0,34751.0,0.005]
[1625548803622,2.28363039,34754.0,34751.0,0.005]
[1625548803723,0.05038249,34753.0,34751.0,0.005]
[1625548803824,0.58115088,34752.0,34751.0,0.005]
[1625548803924,0.64015088,34752.0,34751.0,0.005]
[1625548804024,0.69915088,34752.0,34751.0,0.005]
[1625548804276,0.7495342,34752.0,34751.0,0.005]
[1625548804374,2.10804855,34752.0,34751.0,0.005]
[1625548804826,2.60804855,34752.0,34751.0,0.005]
[1625548805327,2.57389336,34752.0,34751.0,0.005]
[1625548806280,2.57389336,34752.0,34748.0,0.002]
[1625548806578,2.47389336,34752.0,34748.0,0.002]
[1625548806681,0.01622837,34751.0,34748.0,0.002]
[1625548806780,0.13422837,34751.0,34748.0,0.002]
[1625548807182,0.01622845,34750.0,34748.0,0.002]
[1625548807282,0.07522845,34750.0,34748.0,0.002]
[1625548807383,0.13422845,34750.0,34748.0,0.002]
[1625548807734,0.01622821,34749.0,34748.0,0.002]
[1625548807832,0.07522821,34749.0,34748.0,0.002]
[1625548807933,0.61537909,34749.0,34743.0,0.003]
[1625548808233,0.59915088,34749.0,34743.0,0.003]
[1625548809335,0.59915088,34749.0,34748.0,0.002]
[1625548810338,0.54015088,34749.0,34748.0,0.002]
[1625548810540,0.48115088,34749.0,34748.0,0.002]
[1625548810689,0.58115088,34749.0,34748.0,0.002]
[1625548811544,0.64015088,34749.0,34748.0,0.002]
[1625548811643,0.69915088,34749.0,34748.0,0.002]
[1625548813250,0.69915088,34749.0,34743.0,0.003]
[1625548813700,0.59915088,34749.0,34743.0,0.003]
[1625548813950,0.24057544,34744.0,34743.0,0.003]
[1625548814303,0.34057544,34744.0,34743.0,0.003]
[1625548814704,0.24057544,34744.0,34743.0,0.003]
[1625548815552,0.29957544,34744.0,34743.0,0.003]
[1625548816052,0.24057544,34744.0,34743.0,0.003]
[1625548818306,0.24057544,34744.0,34740.0,0.059]
[1625548818407,0.24057544,34744.0,34740.0,0.177]
[1625548818706,0.32687544,34744.0,34740.0,0.177]
[1625548818808,0.32687544,34744.0,34740.0,0.118]
[1625548819109,0.24057544,34744.0,34740.0,0.118]
[1625548819258,0.29957544,34744.0,34740.0,0.118]
[1625548819360,0.29957544,34744.0,34740.0,0.059]
[1625548820011,0.24057544,34743.0,34740.0,0.059]
[1625548820213,0.29957544,34743.0,34740.0,0.059]
[1625548821063,0.24057544,34743.0,34740.0,0.059]
[1625548821165,0.29957544,34743.0,34740.0,0.059]
[1625548822066,0.24057544,34741.0,34740.0,0.059]
[1625548822164,0.29957544,34741.0,34740.0,0.059]
[1625548822365,0.29957544,34741.0,34740.0,0.002]
[1625548825224,0.38557544,34741.0,34740.0,0.002]
[1625548825523,0.40180992,34741.0,34740.0,0.002]
[1625548826079,0.50180992,34741.0,34740.0,0.002]
[1625548826528,0.41580992,34741.0,34740.0,0.002]
[1625548827328,0.41580992,34741.0,34737.0,0.001]
[1625548827730,0.31580992,34741.0,34737.0,0.001]
[1625548827831,0.01623442,34740.0,34737.0,0.001]
[1625548827933,0.07523442,34740.0,34737.0,0.001]
[1625548828132,0.24057544,34738.0,34737.0,0.001]
[1625548828232,0.29957544,34738.0,34737.0,0.001]
[1625548828632,0.31580987,34738.0,34737.0,0.001]
[1625548829032,0.25680987,34738.0,34737.0,0.001]
[1625548829783,0.31580987,34738.0,34737.0,0.001]
[1625548830551,0.25680987,34738.0,34737.0,0.001]
[1625548830737,0.31580987,34738.0,34737.0,0.001]
[1625548832742,0.25680987,34738.0,34737.0,0.001]
[1625548832942,0.01623443,34738.0,34737.0,0.06]
[1625548833048,0.24057544,34741.0,34737.0,0.06]
[1625548833142,1.01377298,34749.0,34737.0,0.119]
[1625548833243,1.01377298,34749.0,34738.0,0.057]
[1625548833343,1.01377298,34749.0,34738.0,0.17841572]
[1625548833546,0.9555,34752.0,34739.0,0.99006306]
[1625548833646,0.01618159,34745.0,34740.0,0.057]
[1625548833743,0.01618159,34745.0,34743.0,4.5285]
[1625548833843,0.01618159,34745.0,34744.0,0.057]
[1625548833943,0.01618159,34745.0,34744.0,0.47929]
[1625548834145,0.25675703,34745.0,34744.0,0.71986544]
[1625548834245,0.35675703,34745.0,34744.0,0.71986544]
[1625548834447,0.34057544,34745.0,34744.0,0.71986544]
[1625548835148,0.34057544,34745.0,34744.0,1.70713331]
[1625548835547,0.34057544,34745.0,34744.0,1.64813331]
[1625548835653,0.34057544,34745.0,34744.0,1.58913331]
[1625548835747,0.34057544,34745.0,34744.0,1.64813331]
[1625548835847,0.35675639,34745.0,34744.0,1.58913331]
[1625548835955,0.35675639,34745.0,34744.0,0.60186544]
[1625548836047,0.35675639,34745.0,34744.0,0.66086544]
[1625548836146,0.34057544,34745.0,34744.0,0.66086544]
[1625548836448,0.35677004,34745.0,34744.0,0.60186544]
[1625548836549,0.41577004,34745.0,34744.0,0.057]
[1625548836653,0.41577004,34745.0,34743.0,1.22917885]
[1625548836751,0.47477004,34745.0,34743.0,1.22917885]
[1625548836851,4.74737004,34745.0,34743.0,1.22917885]
[1625548836953,0.01619616,34744.0,34743.0,0.24057544]
[1625548837053,0.13419616,34744.0,34743.0,0.24057544]
[1625548837152,0.07519616,34744.0,34743.0,0.24057544]
[1625548837302,0.13419616,34744.0,34743.0,0.24057544]
[1625548837603,0.13419616,34744.0,34741.0,0.001]
[1625548837719,0.31989616,34744.0,34741.0,0.001]
[1625548838007,0.01619847,34743.0,34741.0,0.001]
[1625548838110,0.13419847,34743.0,34741.0,0.001]
[1625548838208,0.48115088,34742.0,34741.0,0.001]
[1625548838309,0.54015088,34742.0,34741.0,0.001]
[1625548838409,0.84184088,34742.0,34741.0,0.001]
[1625548838511,0.85803977,34742.0,34741.0,0.001]
[1625548838862,0.79903977,34742.0,34741.0,0.001]
[1625548838964,0.85803977,34742.0,34741.0,0.001]
[1625548839063,0.95803977,34742.0,34741.0,0.001]
[1625548840766,0.71534977,34742.0,34741.0,0.001]
[1625548845330,0.71534977,34742.0,34738.0,0.001]
[1625548845427,0.0854,34741.0,34738.0,0.001]
[1625548845526,0.1444,34741.0,34738.0,0.001]
[1625548845726,0.01619865,34740.0,34738.0,0.001]
[1625548845827,0.07519865,34740.0,34738.0,0.001]
[1625548846230,0.25677409,34739.0,34738.0,0.001]
[1625548846328,0.31577409,34739.0,34738.0,0.001]
[1625548846428,0.52749409,34739.0,34738.0,0.001]
[1625548849087,0.46849409,34739.0,34738.0,0.001]
[1625548849188,0.52749409,34739.0,34738.0,0.001]
[1625548849339,0.31577409,34739.0,34738.0,0.001]
[1625548852594,0.4006802,34739.0,34738.0,0.001]
[1625548853043,0.3416802,34739.0,34738.0,0.001]
[1625548853147,0.4006802,34739.0,34738.0,0.001]
[1625548853443,0.3416802,34739.0,34738.0,0.001]
[1625548854096,0.25677409,34739.0,34738.0,0.08401078]
[1625548854345,0.31577409,34739.0,34738.0,0.08401078]
[1625548854445,0.31577409,34739.0,34738.0,0.001]
[1625548854594,0.35677409,34739.0,34738.0,0.001]
[1625548855446,0.41577409,34739.0,34738.0,0.001]
[1625548855699,0.35677409,34739.0,34738.0,0.001]
[1625548855797,0.35677409,34739.0,34738.0,0.99782455]
[1625548856599,0.41577409,34739.0,34738.0,0.99782455]
[1625548856850,0.41577409,34739.0,34738.0,0.001]
[1625548857302,0.41577409,34739.0,34737.0,0.99702572]
[1625548857402,0.50083958,34739.0,34736.0,1.23784416]
[1625548857702,0.01619847,34738.0,34736.0,1.23784416]
[1625548857804,0.08518866,34737.0,34736.0,1.23784416]
[1625548857903,0.08518866,34737.0,34736.0,1.40589925]
[1625548858206,0.101387,34737.0,34736.0,1.40589925]
[1625548858304,0.40096244,34737.0,34736.0,1.40589925]
[1625548858404,0.44196244,34737.0,34736.0,1.40589925]
[1625548858504,0.50096244,34737.0,34736.0,2.4045979]
[1625548858806,0.40096244,34737.0,34736.0,2.4045979]
[1625548859407,0.31577378,34737.0,34736.0,2.4045979]
[1625548859858,0.40096322,34737.0,34736.0,2.4045979]
[1625548860008,0.34196322,34737.0,34736.0,2.4045979]
[1625548860360,0.25677378,34737.0,34736.0,2.4045979]
[1625548860573,0.25677378,34737.0,34736.0,2.5205979]
[1625548860676,0.01619834,34737.0,34736.0,2.5205979]
[1625548860778,0.01619834,34737.0,34736.0,3.2458717]
[1625548860973,0.69698495,34738.0,34736.0,3.2458717]
[1625548861069,0.69698495,34738.0,34736.0,6.42334522]
[1625548861070,0.01619739,34738.0,34736.0,6.42334522]
[1625548861168,0.01619737,34737.0,34736.0,6.36434522]
[1625548861462,0.01619811,34740.0,34736.0,6.36434522]
[1625548861562,0.10143822,34740.0,34737.0,4.15910479]
[1625548861668,0.10143822,34740.0,34738.0,0.057]
[1625548861761,0.16043822,34740.0,34738.0,0.057]
[1625548861863,0.16043822,34740.0,34739.0,2.82933502]
[1625548861864,0.07519811,34740.0,34739.0,2.82933502]
[1625548861963,0.059,34740.0,34739.0,2.88833502]
[1625548862163,0.059,34740.0,34739.0,2.82933502]
[1625548862261,0.75606516,34740.0,34739.0,2.82933502]
[1625548862362,0.9966406,34740.0,34739.0,2.82933502]
[1625548862563,2.01791942,34740.0,34739.0,1.66431472]
[1625548862662,2.11791942,34740.0,34739.0,1.66431472]
[1625548862862,2.11791942,34740.0,34739.0,0.66572589]
[1625548862863,3.30940136,34740.0,34739.0,0.66572589]
[1625548863664,2.11791942,34740.0,34739.0,1.66528666]
[1625548864015,3.30940887,34740.0,34739.0,0.66572589]
[1625548865421,3.34357478,34740.0,34739.0,0.66572589]
[1625548866523,2.15208533,34740.0,34739.0,1.66537259]
[1625548867975,3.3435278,34740.0,34739.0,0.66572589]
[1625548868677,3.3435278,34740.0,34739.0,0.59572589]
[1625548869129,4.70521504,34740.0,34739.0,0.41689141]
[1625548869378,4.70521504,34740.0,34739.0,0.33351313]
[1625548870133,4.70521504,34740.0,34739.0,0.08338476]
[1625548871989,4.70521504,34740.0,34739.0,0.41740121]
[1625548872087,4.70521504,34740.0,34739.0,0.41170121]
[1625548872439,4.70521504,34740.0,34739.0,0.33401645]
[1625548872791,3.3435278,34740.0,34738.0,1.00147976]
[1625548872890,3.3435278,34740.0,34736.0,1.16939305]
[1625548873140,1.02134023,34738.0,34736.0,1.16939305]
[1625548873240,1.08034023,34738.0,34736.0,1.16939305]
[1625548873340,1.02134023,34738.0,34736.0,1.16939305]
[1625548873441,1.02134023,34738.0,34736.0,1.22639305]
[1625548873792,1.02134023,34738.0,34737.0,1.00125529]
[1625548873892,1.02134023,34738.0,34737.0,1.05825529]
[1625548874092,1.07153955,34738.0,34737.0,1.05825529]
[1625548874193,0.05019932,34738.0,34737.0,2.22569359]
[1625548874592,0.10919932,34738.0,34737.0,2.22569359]
[1625548874947,0.10919932,34738.0,34737.0,2.16869359]
[1625548875246,0.10919932,34738.0,34737.0,2.22569359]
[1625548876602,0.05019932,34738.0,34737.0,2.22569359]
[1625548876703,0.10919932,34738.0,34737.0,2.22569359]
[1625548877406,0.44978894,34738.0,34737.0,3.50051724]
[1625548877704,0.39078894,34738.0,34737.0,3.50051724]
[1625548877905,0.10919932,34738.0,34737.0,2.16869359]
[1625548878411,0.10919932,34738.0,34737.0,2.22569359]
[1625548878513,1.13082406,34738.0,34737.0,2.22569359]
[1625548878814,1.07182406,34738.0,34737.0,2.22569359]
[1625548879014,1.07182406,34738.0,34737.0,2.16869359]
[1625548879116,1.13082406,34738.0,34737.0,2.22569359]
[1625548879313,1.07182406,34738.0,34737.0,2.22569359]
[1625548879413,1.13082406,34738.0,34737.0,2.22569359]
[1625548879514,0.05019932,34738.0,34737.0,2.22569359]
[1625548879865,0.05019932,34738.0,34737.0,3.55849561]
[1625548880868,0.05030698,34739.0,34737.0,3.55849561]
[1625548881068,1.07197777,34739.0,34737.0,3.55849561]
[1625548881421,0.01614405,34738.0,34737.0,3.55849561]
[1625548881719,0.01614405,34738.0,34737.0,1.38980202]
[1625548881969,0.05030594,34739.0,34737.0,1.38980202]
[1625548882071,0.340696,34738.0,34737.0,3.55490158]
[1625548882220,0.35683991,34738.0,34737.0,3.55490158]
[1625548883422,0.41583991,34738.0,34737.0,3.55490158]
[1625548883621,0.07514391,34738.0,34737.0,3.55490158]
[1625548884422,0.17514391,34738.0,34737.0,3.55490158]
[1625548884823,0.11614391,34738.0,34737.0,3.55490158]
[1625548884926,0.45684834,34738.0,34737.0,3.55490158]
[1625548885224,0.11614391,34738.0,34737.0,3.55490158]
[1625548885523,0.17514391,34738.0,34737.0,3.55490158]
[1625548885625,0.11614391,34738.0,34737.0,3.55490158]
[1625548886025,0.15030635,34738.0,34737.0,3.55490158]
[1625548886126,0.20930635,34738.0,34737.0,3.55490158]
[1625548886326,0.15030635,34738.0,34737.0,3.55490158]
[1625548886476,0.15030635,34738.0,34737.0,3.49790158]
[1625548887027,0.20930635,34738.0,34737.0,3.49790158]
[1625548887377,0.20930635,34738.0,34737.0,2.16509956]
[1625548887378,1.23120153,34738.0,34737.0,2.16509956]
[1625548888580,1.18089518,34738.0,34737.0,2.22209956]
[1625548888681,1.23120485,34738.0,34737.0,2.22209956]
[1625548890036,1.23120485,34738.0,34737.0,2.72204362]
[1625548890037,1.74221407,34738.0,34737.0,2.72204362]
[1625548890134,1.74221407,34738.0,34737.0,2.66504362]
[1625548890889,2.05504407,34738.0,34737.0,2.66504362]
[1625548891089,2.05504407,34738.0,34737.0,1.49922078]
[1625548891591,3.24727612,34738.0,34737.0,0.49994406]
[1625548893996,4.6103511,34738.0,34737.0,1.50106034]
[1625548896654,4.6103511,34738.0,34737.0,0.49994406]
[1625548897004,4.6103511,34738.0,34737.0,1.5022167]
[1625548898057,4.6103511,34738.0,34737.0,2.67195936]
[1625548898856,4.6103511,34738.0,34737.0,1.5022167]
[1625548902114,4.6103511,34738.0,34737.0,1.4304167]
[1625548904824,4.6103511,34738.0,34737.0,1.4230167]
[1625548905374,4.6103511,34738.0,34737.0,1.3520167]
[1625548906526,4.85092654,34738.0,34737.0,1.3520167]
[1625548909787,4.85092654,34738.0,34737.0,1.2820167]
[1625548914700,4.85092654,34738.0,34737.0,0.27974406]
[1625548915250,4.85092654,34738.0,34737.0,1.28077542]
[1625548918805,4.85092654,34738.0,34737.0,1.50540542]
[1625548919057,4.80061687,34738.0,34737.0,1.50540542]
[1625548920358,4.80061687,34738.0,34737.0,1.28077542]
[1625548922264,4.80061687,34738.0,34737.0,1.33777542]
[1625548922666,4.80061687,34738.0,34737.0,1.28077542]
[1625548924017,4.80061687,34738.0,34737.0,0.27974406]
[1625548925321,4.80061687,34738.0,34737.0,0.24564406]
[1625548925418,4.80061687,34738.0,34737.0,1.22200403]
[1625548925520,4.80061687,34738.0,34737.0,1.15100403]
[1625548925619,4.80061687,34738.0,34737.0,1.06580403]
[1625548925876,4.80061687,34738.0,34737.0,0.33374285]
[1625548925878,6.3355946,34738.0,34737.0,0.33374285]
[1625548926071,6.3355946,34738.0,34737.0,0.29034285]
[1625548928927,7.01780913,34738.0,34737.0,0.29034285]
[1625548929328,7.0680249,34738.0,34737.0,0.29034285]
[1625548930230,7.0680249,34738.0,34737.0,0.45715981]
[1625548933942,7.0680249,34738.0,34737.0,0.16681696]
[1625548934990,5.53304717,34738.0,34736.0,0.66624563]
[1625548935090,0.0872,34737.0,34736.0,0.66624563]
[1625548935190,0.1462,34737.0,34736.0,0.66624563]
[1625548935290,4.40863006,34737.0,34736.0,0.66624563]
[1625548935490,4.45882814,34737.0,34736.0,0.66624563]
[1625548936243,4.55882814,34737.0,34736.0,0.66624563]
[1625548938149,4.55882814,34737.0,34736.0,1.66538052]
[1625548938349,4.55882814,34737.0,34736.0,1.72238052]
[1625548938448,4.41262814,34737.0,34736.0,1.72238052]
[1625548938547,2.51363373,34737.0,34736.0,1.78138052]
[1625548938751,2.51363373,34737.0,34736.0,2.2625314]
[1625548939057,0.47746872,34737.0,34736.0,7.3887314]
[1625548939201,0.11603307,34737.0,34736.0,8.88432847]
[1625548939300,0.15019079,34737.0,34736.0,8.88432847]
[1625548939502,0.11603307,34737.0,34736.0,8.88432847]
[1625548939702,0.28666303,34737.0,34736.0,8.88432847]
[1625548940460,0.28666303,34737.0,34736.0,9.11810847]
[1625548941302,0.28666303,34737.0,34736.0,3.99190847]
[1625548941954,0.28666303,34737.0,34736.0,3.75812847]
[1625548942053,0.28666303,34737.0,34736.0,3.69912847]
[1625548942405,0.11603307,34737.0,34736.0,2.2035314]
[1625548942706,0.35660851,34737.0,34736.0,1.96295596]
[1625548943006,0.35660851,34737.0,34736.0,1.90595596]
[1625548943907,0.50180851,34737.0,34736.0,1.90595596]
[1625548944061,0.53597279,34737.0,34736.0,1.90265596]
[1625548944158,0.53597279,34737.0,34736.0,1.89865596]
[1625548944311,0.53597279,34737.0,34736.0,1.83765596]
[1625548945112,0.53597279,34737.0,34736.0,1.59708052]
[1625548945563,0.59497279,34737.0,34736.0,1.24218052]
[1625548945663,0.59497279,34737.0,34736.0,0.16550817]
[1625548945664,2.12999407,34737.0,34736.0,0.16550817]
[1625548945763,2.12999407,34737.0,34736.0,0.08210817]
[1625548946515,2.12999407,34737.0,34736.0,0.02610817]
[1625548946619,2.12999407,34737.0,34734.0,0.001]
[1625548946716,0.24057544,34735.0,34734.0,0.001]
[1625548946817,0.63662544,34735.0,34734.0,0.001]
[1625548947120,0.68685353,34735.0,34734.0,0.001]
[1625548947768,0.78685353,34735.0,34734.0,0.001]
[1625548947869,2.32141145,34735.0,34734.0,0.001]
[1625548948273,2.32141145,34735.0,34733.0,0.001]
[1625548948620,1.53473862,34734.0,34733.0,0.001]
[1625548948720,1.88454346,34734.0,34733.0,0.001]
[1625548948820,1.94354346,34734.0,34733.0,0.001]
[1625548949322,2.44354346,34734.0,34733.0,0.001]
[1625548950176,1.94354346,34734.0,34733.0,0.001]
[1625548952075,1.88454346,34734.0,34733.0,0.001]
[1625548952277,1.85037097,34734.0,34733.0,0.001]
[1625548952628,0.31563235,34734.0,34733.0,0.001]
[1625548953429,0.37463235,34734.0,34733.0,0.001]
[1625548954339,1.73769489,34734.0,34733.0,0.001]
[1625548954934,1.67869489,34734.0,34733.0,0.001]
[1625548955434,1.73769489,34734.0,34733.0,0.001]
[1625548955787,0.37463235,34734.0,34733.0,0.001]
[1625548956185,1.7719259,34734.0,34733.0,0.001]
[1625548956837,2.0801059,34734.0,34733.0,0.001]
[1625548957188,3.61353767,34734.0,34733.0,0.001]
[1625548957286,3.61353767,34734.0,34730.0,0.001]
[1625548957589,0.05023042,34733.0,34730.0,0.001]
[1625548957690,1.36305239,34731.0,34730.0,0.001]
[1625548957787,1.48105239,34731.0,34730.0,0.001]
[1625548958090,1.53128317,34731.0,34730.0,0.001]
[1625548958338,1.49711101,34731.0,34730.0,0.001]
[1625548958638,1.53128349,34731.0,34730.0,0.001]
[1625548958789,1.77185893,34731.0,34730.0,0.001]
[1625548958990,4.1218,34728.0,34725.0,0.7052]
[1625548959089,4.1808,34728.0,34725.0,0.7052]
[1625548959439,0.01605868,34727.0,34725.0,0.7052]
[1625548959541,0.32549868,34727.0,34725.0,0.7052]
[1625548959791,1.51792927,34727.0,34725.0,0.7052]
[1625548960042,1.50187059,34727.0,34725.0,0.7052]
[1625548960142,1.58927059,34727.0,34725.0,0.7052]
[1625548960393,1.19244231,34726.0,34725.0,0.7052]
[1625548960493,1.25144231,34726.0,34725.0,0.7052]
[1625548960794,1.73259319,34726.0,34725.0,0.002]
[1625548961094,0.54015088,34726.0,34725.0,0.002]
[1625548962498,0.54015088,34726.0,34725.0,0.061]
[1625548962699,0.54015088,34726.0,34725.0,1.2190987]
[1625548962798,0.54015088,34726.0,34725.0,1.2760987]
[1625548963249,0.48115088,34726.0,34725.0,2.5982915]
[1625548964350,0.48115088,34726.0,34725.0,4.08383599]
[1625548964853,0.24057544,34726.0,34725.0,4.08383599]
[1625548965707,0.24057544,34726.0,34725.0,4.31146599]
[1625548966109,0.24057544,34726.0,34725.0,2.8259215]
[1625548966308,0.24057544,34726.0,34725.0,2.8239215]
[1625548967563,0.24057544,34726.0,34725.0,4.30860696]
[1625548969015,0.24057544,34726.0,34725.0,4.36760696]
[1625548969316,0.24057544,34726.0,34725.0,5.35696454]
[1625548971070,0.25658882,34726.0,34725.0,5.35696454]
[1625548972277,0.25658882,34726.0,34725.0,3.87227908]
[1625548972574,0.25658882,34726.0,34725.0,3.81327908]
[1625548973526,0.25658882,34726.0,34725.0,3.75427908]
[1625548973827,0.25658882,34726.0,34725.0,3.81327908]
[1625548974580,0.25658882,34726.0,34725.0,3.75427908]
[1625548975032,0.24057544,34726.0,34725.0,3.75427908]
[1625548975131,0.2565898,34726.0,34725.0,3.75427908]
[1625548975632,0.2565898,34726.0,34725.0,3.69727908]
[1625548976082,0.2565898,34726.0,34725.0,3.46964908]
[1625548976535,0.4936998,34726.0,34725.0,3.46964908]
[1625548976633,0.4936998,34726.0,34725.0,3.46564908]
[1625548976732,0.5526998,34726.0,34725.0,3.43164908]
[1625548976833,0.58687335,34726.0,34725.0,3.42784908]